bitfinex/quotes_ETHUSD_20241123
["timestamp","ask_amount","ask_price","bid_price","bid_amount"]
[1732400378527,0.55,3407.0,3406.0,0.293]
[1732400378729,0.55,3407.0,3406.1,0.7961]
[1732400378928,3.941331,3407.0,3406.1,0.7961]
[1732400379131,0.941331,3407.0,3406.1,0.7961]
[1732400379543,0.55,3407.2,3406.1,0.7961]
[1732400379724,3.48498,3407.2,3406.1,0.7961]
[1732400379899,3.0,3407.1,3406.1,0.7961]
[1732400380104,0.55,3407.0,3406.1,0.7961]
[1732400380437,0.55,3406.8,3406.1,0.7961]
[1732400384733,0.55,3406.8,3406.3,0.776]
[1732400386017,0.55,3406.8,3406.4,0.00790152]
[1732400386837,0.55,3407.1,3406.4,0.00790152]
[1732400389160,0.0725,3407.0,3406.4,0.00790152]
[1732400389362,0.6225,3406.5,3406.4,0.00790152]
[1732400389660,3.55806,3406.5,3406.4,0.00790152]
[1732400390897,2.93601,3406.0,3405.1,0.8168]
[1732400391055,0.55,3405.9,3405.1,0.8168]
[1732400391758,0.55,3406.1,3405.1,0.8168]
[1732400392652,3.48574,3406.3,3405.1,0.8168]
[1732400392858,0.55,3406.3,3405.1,0.8168]
[1732400394685,0.55,3406.3,3405.2,0.293]
[1732400394859,0.55,3406.3,3405.2,0.8168]
[1732400395186,2.93585,3406.2,3405.2,0.8168]
[1732400395351,0.55,3406.1,3405.2,0.8168]
[1732400397700,3.48591,3406.1,3405.2,0.8168]
[1732400398073,0.55,3406.1,3405.2,0.8168]
[1732400400407,2.9361,3405.9,3405.2,0.8168]
[1732400400567,0.6225,3405.8,3405.2,0.8168]
[1732400401880,0.6225,3405.8,3405.0,0.8147]
[1732400402407,3.55873,3405.8,3405.0,0.8147]
[1732400403642,3.55873,3405.8,3405.1,0.00669956]
[1732400404936,4.208204,3405.8,3405.1,0.00669956]
[1732400405139,0.55,3405.5,3405.1,0.00669956]
[1732400405346,3.48644,3405.5,3405.1,0.00669956]
[1732400405856,0.55,3405.6,3405.1,0.00669956]
[1732400406019,3.48634,3405.6,3405.1,0.00669956]
[1732400406224,4.135841,3405.6,3405.1,0.00669956]
[1732400407847,0.55,3405.4,3405.1,0.00669956]
[1732400409945,3.48652,3405.4,3405.1,0.00669956]
[1732400410410,0.55,3405.4,3405.1,0.00669956]
[1732400413569,0.55,3405.5,3405.1,0.00669956]
[1732400413730,4.1459231,3405.5,3405.1,0.00669956]
[1732400413931,1.2094731,3405.5,3405.1,0.00669956]
[1732400414128,4.1459631,3405.5,3405.1,0.00669956]
[1732400416960,4.1459631,3405.5,3404.8,0.8147]
[1732400417477,1.2094731,3405.5,3404.8,0.8147]
[1732400417633,0.55,3405.5,3404.8,0.8147]
[1732400418369,0.55,3405.4,3404.8,0.8147]
[1732400419246,2.93643,3405.5,3404.8,0.8147]
[1732400419450,2.93626,3405.7,3404.8,0.8147]
[1732400419651,3.48634,3405.6,3404.8,0.8147]
[1732400419852,0.55,3405.6,3404.8,0.8147]
[1732400422176,2.93591,3406.1,3404.7,0.59282096]
[1732400422177,0.0725,3406.5,3404.9,0.84487047]
[1732400422373,0.27181516,3406.4,3405.1,0.8155]
[1732400422684,0.0725,3406.8,3405.2,0.82219936]
[1732400422847,0.27181831,3406.7,3405.4,0.8155]
[1732400423175,0.0725,3406.8,3405.4,0.8155]
[1732400423387,0.27187227,3406.7,3405.4,0.8155]
[1732400423536,0.32795323,3406.7,3405.4,0.8155]
[1732400424844,0.32795323,3406.7,3405.5,0.8155]
[1732400425052,0.55,3406.7,3405.5,0.8155]
[1732400425370,0.0725,3406.8,3405.5,0.8155]
[1732400425763,3.0,3406.9,3405.5,0.8155]
[1732400426562,0.55,3406.9,3405.5,0.8155]
[1732400430057,0.55,3407.0,3405.5,0.8155]
[1732400430257,1.18404911,3407.0,3405.5,0.8155]
[1732400431059,0.55,3407.0,3405.5,0.8155]
[1732400432094,10.54618131,3407.4,3405.6,0.0293587]
[1732400432095,0.06173558,3406.9,3405.6,0.0293587]
[1732400432260,0.06173558,3406.9,3406.0,0.7508]
[1732400432589,10.03819806,3408.0,3406.3,0.7508]
[1732400432753,0.27138895,3407.9,3406.3,0.7508]
[1732400432953,0.06013267,3407.9,3406.3,0.7508]
[1732400433591,0.06013267,3407.9,3406.4,0.78015007]
[1732400433961,10.03788806,3408.4,3406.8,0.293]
[1732400434196,0.05635194,3407.8,3406.9,0.7508]
[1732400434398,1.12208331,3408.3,3406.9,0.7508]
[1732400434572,0.05631854,3407.7,3406.9,0.7508]
[1732400434779,1.12208331,3408.3,3406.9,0.7508]
[1732400434980,0.05637785,3407.6,3407.1,0.7508]
[1732400435182,3.00644,3408.4,3407.1,0.7508]
[1732400435362,0.05634444,3407.5,3407.1,0.7508]
[1732400435562,0.55,3408.3,3407.1,0.7508]
[1732400435975,0.55,3408.1,3407.1,0.7508]
[1732400436263,0.05472566,3408.0,3407.1,0.7508]
[1732400444737,0.8087,3408.6,3407.1,0.7508]
[1732400444898,0.05298139,3407.9,3407.1,0.7508]
[1732400445103,0.8087,3408.6,3407.1,0.7508]
[1732400445332,0.8087,3408.6,3407.4,0.7508]
[1732400445549,0.05318177,3408.5,3407.4,0.7508]
[1732400446027,0.55,3408.7,3407.4,0.7508]
[1732400446227,0.05314838,3408.4,3407.4,0.7508]
[1732400446402,0.05321516,3408.6,3407.4,0.7508]
[1732400446733,0.053311,3408.5,3407.4,0.7508]
[1732400447093,0.053311,3408.5,3407.4,1.32934555]
[1732400447396,0.053311,3408.5,3407.5,0.7508]
[1732400447593,0.053311,3408.5,3407.7,0.7508]
[1732400448027,0.55,3408.7,3407.7,0.7508]
[1732400448326,0.05334439,3408.6,3407.7,0.7508]
[1732400450035,0.55,3408.8,3407.7,0.7508]
[1732400450396,0.05337778,3408.7,3407.7,0.7508]
[1732400451734,0.55,3408.9,3407.7,0.7508]
[1732400451951,0.05340899,3408.6,3407.7,0.7508]
[1732400452243,0.05337559,3408.5,3407.7,0.7508]
[1732400452546,0.55,3408.9,3407.7,0.7508]
[1732400452761,0.05334127,3408.4,3407.7,0.7508]
[1732400452915,0.55,3408.9,3407.7,0.7508]
[1732400453115,0.05329851,3408.3,3407.7,0.7508]
[1732400453407,0.55,3408.9,3407.7,0.7508]
[1732400453937,1.23745693,3408.3,3407.7,0.7508]
[1732400454343,0.05328103,3408.2,3407.7,0.7508]
[1732400454845,0.05328103,3408.2,3407.8,0.293]
[1732400455153,0.05328103,3408.2,3407.9,0.7523]
[1732400455528,1.23745693,3408.3,3407.9,0.7523]
[1732400455844,0.05328196,3408.2,3407.9,0.7523]
[1732400456149,1.23745693,3408.3,3407.9,0.7523]
[1732400456518,0.05328196,3408.2,3407.9,0.7523]
[1732400456851,1.23745693,3408.3,3407.9,0.7523]
[1732400457052,0.05328196,3408.2,3407.9,0.7523]
[1732400457223,1.23745693,3408.3,3407.9,0.7523]
[1732400457410,0.05328196,3408.2,3407.9,0.7523]
[1732400457611,1.23745693,3408.3,3407.9,0.7523]
[1732400457817,0.05328196,3408.2,3407.9,0.7523]
[1732400458012,1.23745693,3408.3,3407.9,0.7523]
[1732400458222,0.05328196,3408.2,3407.9,0.7523]
[1732400458426,1.23745693,3408.3,3407.9,0.7523]
[1732400458655,0.05328196,3408.2,3407.9,0.7523]
[1732400458816,1.23745693,3408.3,3407.9,0.7523]
[1732400459015,0.05328196,3408.2,3407.9,0.7523]
[1732400459219,1.23745693,3408.3,3407.9,0.7523]
[1732400459445,0.05332316,3408.2,3407.9,0.7523]
[1732400459646,1.23745693,3408.3,3407.9,0.7523]
[1732400459958,0.05332316,3408.2,3407.9,0.7523]
[1732400460341,1.23745693,3408.3,3407.9,0.7523]
[1732400460748,0.05332316,3408.2,3407.9,0.7523]
[1732400461043,2.47491386,3408.0,3407.0,0.02934001]
[1732400461244,0.05322296,3407.9,3407.5,0.7523]
[1732400464480,1.23745693,3407.6,3407.5,0.7523]
[1732400464682,1.29055253,3407.6,3407.5,0.7523]
[1732400466577,0.0725,3408.6,3407.5,0.7523]
[1732400466747,0.05132575,3407.6,3407.5,0.7523]
[1732400467110,0.05129111,3407.6,3407.5,0.7523]
[1732400467590,1.23745693,3408.2,3407.5,0.7523]
[1732400467748,0.05129111,3407.6,3407.5,0.7523]
[1732400467948,1.23745693,3408.2,3407.5,0.7523]
[1732400468177,1.23745693,3408.2,3407.7,0.7523]
[1732400472976,0.0725,3408.9,3407.7,0.7523]
[1732400473179,1.23745693,3408.5,3407.8,0.293]
[1732400473353,0.0517162,3408.8,3407.9,0.7928]
[1732400473552,0.05158265,3408.4,3407.9,0.7928]
[1732400473785,1.23745693,3408.6,3407.9,0.7928]
[1732400474390,0.57944193,3409.9,3407.9,0.7928]
[1732400474391,0.05161604,3408.5,3407.9,0.7928]
[1732400474588,0.05161604,3408.5,3407.9,0.293]
[1732400474793,1.23745693,3409.1,3408.3,0.7928]
[1732400475093,0.05158265,3408.4,3408.3,1.0858]
[1732400475256,1.23745693,3409.1,3408.4,0.7928]
[1732400477583,1.23745693,3409.1,3408.4,0.293]
[1732400477787,1.23745693,3409.1,3408.5,0.7928]
[1732400479986,1.23745693,3409.4,3408.5,0.7928]
[1732400480358,1.23745693,3409.4,3408.6,1.0858]
[1732400480554,1.23745693,3409.4,3408.7,0.7928]
[1732400480753,2.8136568,3409.7,3408.7,0.7928]
[1732400481964,2.8136568,3409.3,3408.7,0.7928]
[1732400482294,5.7471568,3408.9,3407.7,0.7928]
[1732400482810,2.93376,3408.6,3407.7,0.7928]
[1732400482996,2.8136568,3408.5,3407.7,0.7928]
[1732400483868,2.8136568,3408.1,3407.7,0.7928]
[1732400484066,0.0725,3408.0,3407.0,0.7928]
[1732400484287,0.0725,3408.0,3407.0,1.0858]
[1732400484502,0.0725,3408.0,3407.0,0.7928]
[1732400485110,0.05160187,3407.9,3407.0,0.7928]
[1732400488874,2.8136568,3408.1,3407.0,0.7928]
[1732400489093,0.05156846,3407.8,3407.0,0.7928]
[1732400489303,0.05150145,3408.0,3407.0,0.7928]
[1732400489618,0.05146805,3407.9,3407.0,0.7928]
[1732400489802,2.8136568,3407.7,3407.0,0.7928]
[1732400490173,0.05136315,3407.6,3407.0,0.7928]
[1732400490904,2.98603315,3407.6,3407.0,0.7928]
[1732400491208,2.9347,3407.5,3407.0,0.7928]
[1732400491408,3.0,3407.4,3407.0,0.7928]
[1732400491574,0.05129632,3407.4,3407.0,0.7928]
[1732400492207,0.05129632,3407.4,3405.9,0.7528]
[1732400493009,0.05129632,3407.4,3406.1,0.7528]
[1732400493380,0.7528,3407.3,3406.1,0.7528]
[1732400493607,0.80406291,3407.3,3406.1,0.7528]
[1732400494812,0.80406291,3407.3,3406.2,1.0458]
[1732400495915,0.0725,3407.2,3406.2,1.20862913]
[1732400496098,0.0725,3407.2,3406.2,1.0458]
[1732400496409,0.0509761,3407.1,3406.2,1.0458]
[1732400499730,2.9860561,3407.1,3406.2,1.0458]
[1732400500033,0.0509761,3407.1,3406.2,1.0458]
[1732400500677,0.0509761,3407.1,3406.3,0.293]
[1732400500801,0.0509761,3407.1,3405.8,0.59092639]
[1732400500802,0.0509761,3407.1,3406.5,0.293]
[1732400501007,3.5664568,3407.3,3406.6,0.8118]
[1732400501203,0.05094268,3407.0,3406.6,0.8118]
[1732400501545,0.05090925,3406.9,3406.6,0.8118]
[1732400501840,3.5664568,3407.3,3406.6,0.8118]
[1732400502025,0.05087583,3406.8,3406.6,0.8118]
[1732400502546,0.05082461,3406.7,3406.6,0.8118]
[1732400502837,0.8118,3407.5,3406.8,0.293]
[1732400503015,0.8118,3407.5,3407.0,1.1048]
[1732400503213,0.8118,3407.5,3407.1,0.8118]
[1732400503634,2.8136568,3408.1,3407.3,0.8118]
[1732400503908,3.6254568,3408.1,3407.3,0.8118]
[1732400506617,0.8118,3408.1,3407.3,0.8118]
[1732400506947,2.8136568,3408.5,3407.3,0.8118]
[1732400507110,0.8118,3408.4,3407.3,0.8118]
[1732400507318,0.8118,3408.4,3407.4,1.1048]
[1732400507512,0.8118,3408.4,3407.5,0.8118]
[1732400507834,2.8136568,3408.5,3407.5,0.8118]
[1732400508042,3.6254568,3408.5,3407.5,0.8118]
[1732400508213,0.8118,3408.5,3407.5,0.8118]
[1732400509654,0.8118,3408.5,3406.9,0.293]
[1732400509655,2.8136568,3408.9,3407.6,0.02934072]
[1732400509857,0.8118,3408.8,3407.7,0.7578]
[1732400510354,0.8118,3408.8,3407.8,0.78714073]
[1732400510714,0.8118,3408.8,3407.8,0.7578]
[1732400510964,0.8118,3408.8,3407.9,0.78713848]
[1732400511258,0.8118,3408.8,3407.9,0.7578]
[1732400512760,2.8136568,3408.9,3407.9,0.7578]
[1732400513123,0.05173211,3408.8,3407.9,0.7578]
[1732400513664,1.171607,3409.0,3407.9,0.7578]
[1732400513834,0.05169872,3408.7,3407.9,0.7578]
[1732400514036,0.7578,3409.2,3407.9,0.7578]
[1732400514250,0.05166533,3408.6,3408.1,0.7578]
[1732400514464,2.8136568,3409.3,3408.3,0.7578]
[1732400514654,3.9851488,3409.3,3408.3,0.7578]
[1732400514860,3.9851488,3409.3,3408.1,0.32233436]
[1732400514861,0.05186563,3409.2,3408.5,0.7578]
[1732400515767,0.7578,3409.3,3408.5,0.7578]
[1732400516065,0.05183225,3409.1,3408.5,0.7578]
[1732400516262,0.05186563,3409.2,3408.5,0.7578]
[1732400516566,0.05183225,3409.1,3408.5,0.7578]
[1732400516952,0.7578,3409.3,3408.5,0.7578]
[1732400517161,0.05195329,3409.0,3408.5,0.7578]
[1732400517331,0.7578,3409.3,3408.5,0.7578]
[1732400517536,0.05202005,3409.2,3408.5,0.7578]
[1732400518055,2.8136568,3408.9,3408.5,0.7578]
[1732400518481,0.05186781,3408.8,3407.6,0.8158]
[1732400519462,0.0725,3408.7,3407.6,0.8158]
[1732400519662,0.0725,3408.7,3407.7,0.293]
[1732400519878,0.05180104,3408.6,3407.7,0.46348973]
[1732400521571,0.05180104,3408.6,3407.8,0.8158]
[1732400522069,2.8136568,3408.9,3407.8,0.8158]
[1732400522273,0.05176765,3408.5,3407.8,0.8158]
[1732400522458,2.8136568,3408.9,3407.8,0.8158]
[1732400522673,0.05173426,3408.4,3407.8,0.8158]
[1732400522985,2.8136568,3408.5,3407.8,0.8158]
[1732400523152,2.8136568,3408.1,3407.8,0.8158]
[1732400523681,0.05155294,3408.0,3406.8,0.60063812]
[1732400523851,0.05155294,3408.0,3406.9,0.8158]
[1732400524032,0.05155294,3408.0,3407.0,0.293]
[1732400524238,3.05155294,3408.0,3407.0,0.293]
[1732400524473,3.05155294,3408.0,3407.0,0.17040433]
[1732400525434,5.98582294,3408.0,3407.0,0.17040433]
[1732400525878,2.8136568,3407.7,3407.0,0.17040433]
[1732400526237,0.05141932,3407.6,3407.0,0.17040433]
[1732400526678,0.05141932,3407.6,3406.9,0.8158]
[1732400534775,0.05141932,3407.6,3407.0,0.293]
[1732400540254,0.0725,3407.5,3407.0,0.293]
[1732400540567,0.1220775,3407.5,3406.7,1.0694]
[1732400540783,0.1220775,3407.5,3406.9,0.293]
[1732400542395,0.1220775,3407.5,3406.8,0.293]
[1732400550810,1.23820033,3407.4,3406.8,0.293]
[1732400551018,1.28773505,3407.4,3406.8,0.293]
[1732400562967,1.23820033,3407.1,3406.5,0.293]
[1732400563329,0.04938142,3407.0,3406.5,0.293]
[1732400564627,0.0725,3406.9,3406.5,0.293]
[1732400564869,0.121848,3406.9,3406.5,0.293]
[1732400565037,0.121848,3406.9,3406.3,0.293]
[1732400565369,1.23820033,3406.8,3406.3,0.293]
[1732400565673,0.04925212,3406.7,3406.3,0.293]
[1732400567289,0.04925212,3406.7,3406.2,0.293]
[1732400567450,1.23820033,3406.8,3406.2,0.293]
[1732400567785,0.04921869,3406.6,3406.2,0.293]
[1732400567981,0.04918526,3406.5,3406.2,0.293]
[1732400568387,1.23820033,3406.8,3406.2,0.293]
[1732400568388,0.04915183,3406.4,3406.2,0.293]
[1732400568799,0.0491184,3406.3,3406.2,0.293]
[1732400569175,1.23820033,3406.8,3406.2,0.45931321]
[1732400570186,0.0725,3406.9,3406.2,0.45931321]
[1732400570382,0.04928555,3406.8,3406.2,0.45931321]
[1732400575073,1.31070033,3407.1,3406.2,0.45931321]
[1732400576430,0.04777692,3407.0,3406.2,0.45931321]
[1732400579113,0.04777692,3407.0,3406.4,0.293]
[1732400579502,0.04777692,3407.0,3406.5,0.02935245]
[1732400579822,0.0477435,3406.9,3406.7,0.293]
[1732400580029,0.0725,3407.3,3406.7,0.293]
[1732400580194,0.04771007,3406.8,3406.7,0.293]
[1732400580386,0.0725,3407.3,3406.7,0.293]
[1732400580605,0.04784376,3407.2,3406.7,0.293]
[1732400581022,1.23820033,3407.4,3406.7,0.293]
[1732400581227,0.04782719,3407.1,3406.7,0.293]
[1732400581437,1.23820033,3407.4,3406.7,0.293]
[1732400581730,0.04779377,3407.0,3406.9,0.293]
[1732400581944,1.31070033,3407.7,3406.9,0.293]
[1732400582254,1.23820033,3407.7,3406.9,0.293]
[1732400582388,0.04799426,3407.6,3407.1,0.293]
[1732400585030,0.04799426,3407.6,3407.2,0.293]
[1732400585239,1.23820033,3407.9,3407.2,0.293]
[1732400585405,0.04798894,3407.5,3407.2,0.293]
[1732400585596,1.23820033,3407.9,3407.2,0.293]
[1732400585926,0.04809478,3407.8,3407.2,0.293]
[1732400587151,0.0725,3407.5,3406.4,0.32194585]
[1732400587336,1.23820033,3407.3,3406.6,0.2926]
[1732400587633,0.04797763,3407.2,3406.6,0.2926]
[1732400588619,1.23820033,3407.3,3406.6,0.2926]
[1732400589031,0.04794768,3407.2,3406.6,0.2926]
[1732400589241,1.23820033,3407.0,3406.6,0.2926]
[1732400589448,0.0725,3406.9,3406.4,0.2926]
[1732400590738,0.04778778,3406.8,3406.4,0.2926]
[1732400591681,0.0725,3406.9,3406.4,0.2926]
[1732400597197,0.04777186,3406.8,3406.4,0.2926]
[1732400597563,0.0725,3406.9,3406.4,0.2926]
[1732400597960,0.0477653,3406.8,3406.4,0.2926]
[1732400598501,0.0725,3406.9,3406.4,0.2926]
[1732400598708,0.04773187,3406.7,3406.4,0.2926]
[1732400599001,0.0725,3406.9,3406.4,0.2926]
[1732400599294,0.0477653,3406.8,3406.4,0.2926]
[1732400599501,0.0725,3406.9,3406.4,0.2926]
[1732400599700,0.04773187,3406.7,3406.4,0.2926]
[1732400599886,0.0725,3406.9,3406.4,0.2926]
[1732400600065,0.04769845,3406.6,3406.4,0.2926]
[1732400600262,0.0725,3406.9,3406.4,0.2926]
[1732400600491,0.0460119,3406.5,3406.4,0.2926]
[1732400600697,1.23820033,3407.0,3406.4,0.2926]
[1732400600866,0.0460119,3406.5,3406.4,0.2926]
[1732400601075,1.23820033,3407.0,3406.4,0.2926]
[1732400601279,0.0460119,3406.5,3406.4,0.2926]
[1732400601487,1.23820033,3407.0,3406.4,0.2926]
[1732400603264,0.04614561,3406.9,3406.4,0.2926]
[1732400616719,1.23820033,3407.0,3406.4,0.2926]
[1732400617010,0.04545795,3406.8,3406.4,0.2926]
[1732400617217,0.04549137,3406.9,3406.4,0.2926]
[1732400617428,1.23820033,3407.0,3406.4,0.2926]
[1732400617598,0.04545795,3406.8,3406.4,0.2926]
[1732400617794,0.04549137,3406.9,3406.4,0.2926]
[1732400618125,0.04545795,3406.8,3406.4,0.2926]
[1732400618322,1.23820033,3407.0,3406.4,0.2926]
[1732400618528,0.04542452,3406.7,3406.4,0.2926]
[1732400618822,1.23820033,3407.0,3406.4,0.2926]
[1732400619031,0.04539109,3406.6,3406.4,0.2926]
[1732400619325,0.04535766,3406.5,3406.4,0.2926]
[1732400619621,1.23820033,3407.0,3406.4,0.2926]
[1732400619789,0.04535766,3406.5,3406.4,0.2926]
[1732400620419,1.23820033,3407.0,3406.4,0.2926]
[1732400620623,0.04535766,3406.5,3406.4,0.2926]
[1732400620807,1.23820033,3407.0,3406.4,0.2926]
[1732400621006,0.04536049,3406.5,3406.4,0.2926]
[1732400621219,1.23820033,3407.0,3406.4,0.7008]
[1732400621595,0.04549419,3406.9,3406.4,0.2926]
[1732400622026,1.23820033,3407.0,3406.4,0.2926]
[1732400622499,0.04549043,3406.9,3406.4,0.2926]
[1732400623319,1.23820033,3407.0,3406.4,0.2926]
[1732400623522,0.045457,3406.8,3406.4,0.2926]
[1732400623716,1.23820033,3407.0,3406.4,0.2926]
[1732400623918,0.04543299,3406.7,3406.4,0.2926]
[1732400624106,1.23820033,3407.0,3406.4,0.2926]
[1732400624308,0.04539956,3406.6,3406.4,0.2926]
[1732400624522,1.23820033,3407.0,3406.4,0.2926]
[1732400624750,0.04536613,3406.5,3406.4,0.2926]
[1732400624889,1.23820033,3407.0,3406.4,0.2926]
[1732400625092,0.04536895,3406.5,3406.4,0.2926]
[1732400625293,1.23820033,3407.0,3406.4,0.2926]
[1732400625494,0.04536895,3406.5,3406.4,0.2926]
[1732400625693,1.23820033,3407.0,3406.4,0.2926]
[1732400625892,0.04536895,3406.5,3406.4,0.2926]
[1732400626134,1.23820033,3407.0,3406.4,0.2926]
[1732400626342,0.04536895,3406.5,3406.4,0.8426]
[1732400626495,1.23820033,3407.4,3406.6,0.2926]
[1732400627692,1.23820033,3407.4,3406.5,0.2926]
[1732400627914,1.23820033,3407.4,3406.7,0.2926]
[1732400630331,1.23820033,3407.4,3406.8,0.8267]
[1732400630699,1.23820033,3407.6,3406.8,0.8267]
[1732400630901,1.23820033,3407.6,3406.9,0.2926]
[1732400634928,0.0457681,3407.5,3406.9,0.2926]
[1732400635735,0.0457681,3407.5,3407.0,1.1193]
[1732400636236,1.23820033,3407.9,3407.2,0.2926]
[1732400636620,0.04586833,3407.8,3407.2,0.2926]
[1732400637004,0.04586833,3407.8,3407.4,0.2926]
[1732400638831,1.23820033,3407.6,3406.7,0.32194874]
[1732400639008,0.0725,3407.1,3406.7,0.2926]
[1732400639345,0.04560102,3407.0,3406.7,0.2926]
[1732400639930,0.04560102,3407.0,3406.6,0.2926]
[1732400639931,1.23820033,3406.9,3406.6,0.2926]
[1732400640137,1.28376793,3406.9,3406.6,0.2926]
[1732400640956,1.28376793,3406.9,3406.4,0.2926]
[1732400641449,1.28376793,3406.9,3406.4,0.46286072]
[1732400642719,0.0455676,3406.9,3406.4,0.46286072]
[1732400643034,0.0725,3407.1,3406.4,0.46286072]
[1732400643475,0.04560102,3407.0,3406.4,0.46286072]
[1732400655363,0.0725,3406.4,3405.5,0.2926]
[1732400655566,0.0725,3406.1,3405.5,0.2926]
[1732400656088,0.04522625,3406.0,3405.5,0.2926]
[1732400656252,0.04522625,3406.0,3405.3,0.29929916]
[1732400656745,0.0725,3406.1,3405.3,0.29929916]
[1732400657347,1.23820033,3405.9,3405.3,0.29929916]
[1732400657785,0.04515936,3405.8,3405.3,0.29929916]
[1732400658146,0.04515936,3405.8,3405.3,0.46390264]
[1732400658791,0.04515936,3405.8,3405.3,0.29929916]
[1732400659584,0.0725,3405.7,3405.4,0.2926]
[1732400660559,0.0725,3405.7,3405.3,0.00669916]
[1732400662068,1.23820033,3405.6,3405.3,0.00669916]
[1732400662259,0.04483499,3405.5,3405.3,0.00669916]
[1732400663273,0.0725,3405.7,3405.3,0.00669916]
[1732400663451,0.0448675,3405.6,3405.3,0.00669916]
[1732400665180,0.0448675,3405.6,3405.4,0.716]
[1732400665695,0.1225,3406.4,3405.4,1.0086]
[1732400666051,0.04334924,3405.5,3405.4,1.5586]
[1732400666196,0.1225,3406.4,3405.4,1.0086]
[1732400666494,0.1225,3406.4,3405.5,0.15652992]
[1732400666693,0.04361678,3406.3,3405.5,0.15652992]
[1732400667091,0.04361678,3406.3,3405.6,0.57936176]
[1732400667395,0.1225,3406.7,3405.8,0.55]
[1732400667716,1.23820033,3406.8,3405.8,0.8426]
[1732400667920,0.1225,3406.9,3405.8,0.8426]
[1732400668195,1.23820033,3407.1,3406.1,0.8426]
[1732400668358,1.23820033,3407.1,3406.4,0.766]
[1732400671182,0.1225,3407.2,3406.5,0.55]
[1732400671405,1.23820033,3407.4,3406.5,0.55]
[1732400671717,0.04399833,3407.3,3406.6,0.0293518]
[1732400672013,1.23820033,3407.7,3406.8,0.8426]
[1732400672188,1.23820033,3407.7,3406.9,0.16439499]
[1732400672189,0.04396491,3407.2,3406.9,0.16439499]
[1732400672381,1.23820033,3407.7,3406.8,0.8426]
[1732400674310,1.23820033,3408.1,3407.2,0.8426]
[1732400674511,1.23820033,3408.1,3407.2,0.55]
[1732400674817,1.23820033,3408.1,3407.0,0.55]
[1732400674987,1.23820033,3408.1,3407.1,0.02934605]
[1732400675191,1.23820033,3408.1,3407.0,0.55]
[1732400675989,1.23820033,3408.1,3407.2,0.55]
[1732400677982,0.1225,3408.6,3407.5,0.772]
[1732400677983,1.23820033,3408.4,3407.5,0.772]
[1732400678315,0.04441182,3408.0,3407.6,0.55]
[1732400678472,1.23820033,3408.4,3407.6,0.55]
[1732400678679,0.04437841,3407.9,3407.7,0.02934341]
[1732400678881,1.23820033,3408.8,3407.9,0.55]
[1732400679320,0.04464558,3408.7,3407.9,0.55]
[1732400681083,2.81463864,3408.9,3407.9,0.55]
[1732400681276,0.04461219,3408.6,3407.9,0.55]
[1732400681604,0.0445788,3408.5,3407.9,0.55]
[1732400682002,2.81463864,3408.9,3407.9,0.55]
[1732400682179,0.04454541,3408.4,3407.9,0.55]
[1732400682374,2.81463864,3408.9,3407.9,0.55]
[1732400682682,0.04451201,3408.3,3407.9,0.55]
[1732400682880,0.1225,3408.8,3407.9,0.7407247]
[1732400683115,0.04447862,3408.2,3407.9,0.7407247]
[1732400683321,0.1225,3408.8,3407.9,0.7407247]
[1732400683490,0.04464558,3408.7,3408.1,0.55]
[1732400685601,0.1225,3408.6,3407.4,1.0646]
[1732400686526,0.1225,3408.6,3407.6,0.2926]
[1732400686924,0.04476217,3408.5,3407.8,0.2926]
[1732400687292,0.1225,3408.6,3407.8,0.2926]
[1732400692733,0.1225,3408.6,3407.9,0.7551]
[1732400694849,0.1225,3408.6,3408.0,0.2926]
[1732400700849,0.04453804,3408.5,3407.8,0.2926]
[1732400701073,0.04453804,3408.5,3407.8,1.46548115]
[1732400701213,0.1225,3408.6,3407.8,0.2926]
[1732400701530,0.04453804,3408.5,3407.8,0.2926]
[1732400701855,0.04453804,3408.5,3407.7,0.2926]
[1732400702047,0.1225,3408.4,3407.7,0.2926]
[1732400702215,0.1225,3408.4,3407.0,1.0945]
[1732400702553,0.1225,3408.4,3407.0,2.10448229]
[1732400702851,0.1225,3408.2,3407.0,2.10448229]
[1732400703779,0.1225,3408.2,3407.2,0.2926]
[1732400704078,0.04440916,3408.1,3407.4,0.2926]
[1732400704440,0.1225,3408.2,3407.4,0.2926]
[1732400706991,0.1225,3408.2,3407.2,0.2926]
[1732400707844,0.1225,3408.2,3407.1,0.2926]
[1732400708383,0.1225,3408.0,3407.1,0.2926]
[1732400708678,0.04432252,3407.9,3407.1,0.2926]
[1732400710762,0.1225,3408.0,3407.1,0.2926]
[1732400711224,0.1225,3407.8,3407.2,0.2926]
[1732400711392,0.1225,3407.6,3406.5,0.755]
[1732400711593,0.0441492,3407.5,3406.5,0.755]
[1732400711914,0.1225,3407.4,3406.5,0.95425696]
[1732400712487,0.04408237,3407.3,3406.6,0.2926]
[1732400712812,0.1225,3407.4,3406.6,0.2926]
[1732400713111,0.04407197,3407.3,3406.6,0.2926]
[1732400713481,0.1225,3407.4,3406.6,0.2926]
[1732400713791,0.04407197,3407.3,3406.6,0.2926]
[1732400713992,0.1225,3407.4,3406.6,0.2926]
[1732400714190,0.04407197,3407.3,3406.6,0.2926]
[1732400714405,0.1225,3407.4,3406.6,0.2926]
[1732400714711,0.04407197,3407.3,3406.6,0.2926]
[1732400715233,0.1225,3407.4,3406.6,0.2926]
[1732400715420,0.04407197,3407.3,3406.6,0.2926]
[1732400715625,0.1225,3407.4,3406.6,0.2926]
[1732400715820,0.04407197,3407.3,3406.6,0.2926]
[1732400716165,0.1225,3407.4,3406.6,0.2926]
[1732400716725,0.1225,3407.2,3406.4,0.2926]
[1732400717131,0.1225,3407.0,3406.4,0.2926]
[1732400720805,0.1225,3407.0,3406.3,0.2926]
[1732400722854,0.0437767,3406.9,3406.3,0.2926]
[1732400723067,0.0437767,3406.9,3405.7,0.7552]
[1732400723068,0.1225,3406.8,3406.1,0.2926]
[1732400723572,1.23756958,3406.8,3406.1,0.2926]